bitfinex-derivatives/quotes_SOLF0:USTF0_20240827
["timestamp","ask_amount","ask_price","bid_price","bid_amount"]
[1724717608023,27.53931755,157.61,157.58,3.21987413]
[1724717608918,24.36781755,157.61,157.58,3.21987413]
[1724717612724,24.36781755,157.61,157.59,3.1717]
[1724717613630,24.36781755,157.61,157.58,0.04787413]
[1724717615021,24.36781755,157.61,157.58,3.21977413]
[1724717616030,24.36781755,157.61,157.59,3.1718]
[1724717616330,0.04781755,157.61,157.58,0.04787413]
[1724717616727,0.04781755,157.61,157.6,3.1716]
[1724717620830,47.58555116,157.66,157.58,0.04787413]
[1724717621124,47.58555116,157.66,157.58,1.28657413]
[1724717621528,47.58555116,157.66,157.65,3.1706]
[1724717621727,47.58555116,157.66,157.58,1.2387]
[1724717621926,24.36082783,157.64,157.58,1.2387]
[1724717622128,24.36082783,157.64,157.63,3.1709]
[1724717622524,24.36082783,157.64,157.6,0.04696553]
[1724717623533,27.53162783,157.64,157.61,3.1714]
[1724717624132,24.36082783,157.64,157.61,3.1714]
[1724717624928,24.36082783,157.64,157.62,3.1712]
[1724717627931,24.36082783,157.64,157.63,3.171]
[1724717631441,0.04082783,157.64,157.63,3.171]
[1724717634751,24.32,157.72,157.62,24.32]
[1724717634942,5.90086937,157.96,157.64,24.32]
[1724717634943,4.18,157.73,157.64,24.32]
[1724717635147,24.32,157.77,157.66,24.32]
[1724717635349,24.32,157.77,157.68,24.32]
[1724717635540,24.32,157.77,157.69,5.4628]
[1724717635737,0.04436619,157.75,157.71,0.04823529]
[1724717636650,0.04436619,157.75,157.74,3.1688]
[1724717639249,24.32,157.82,157.78,3.1679]
[1724717640246,24.36802841,157.82,157.78,3.2137023]
[1724717640557,24.32,157.8,157.78,0.0458023]
[1724717642440,27.53522841,157.82,157.78,0.0458023]
[1724717644948,27.53522841,157.82,157.78,3.2137023]
[1724717645757,3.1674,157.81,157.78,0.0458023]
[1724717646956,3.1686,157.75,157.74,4.18]
[1724717647155,24.32,157.75,157.66,4.18]
[1724717647351,4.18,157.78,157.67,1.2572]
[1724717647660,24.32,157.76,157.67,1.2572]
[1724717647961,24.32,157.74,157.67,1.2572]
[1724717648156,0.04776874,157.72,157.69,0.04496709]
[1724717649558,0.04776874,157.72,157.7,3.1694]
[1724717650848,0.04776874,157.72,157.69,0.04496709]
[1724717651053,24.32,157.71,157.69,0.04496709]
[1724717651463,27.4896,157.71,157.69,0.04496709]
[1724717651658,24.32,157.71,157.69,0.04496709]
[1724717652463,3.1696,157.7,157.69,0.04496709]
[1724717652861,24.32,157.71,157.69,0.04496709]
[1724717653267,27.4894,157.71,157.69,0.04496709]
[1724717655361,3.1696,157.7,157.69,0.04496709]
[1724717659161,27.4895,157.71,157.69,0.04496709]
[1724717659358,0.04776874,157.72,157.69,0.04496709]
[1724717659763,0.04776874,157.72,157.71,3.1694]
[1724717666869,3.1685,157.76,157.73,3.1689]
[1724717667066,24.32,157.79,157.71,24.32]
[1724717667267,24.32,157.79,157.72,1.2731]
[1724717667664,3.168,157.78,157.75,3.1685]
[1724717667859,3.21122361,157.78,157.75,3.21713956]
[1724717668764,3.21122361,157.78,157.75,0.04863956]
[1724717668765,0.04322361,157.78,157.75,0.04863956]
[1724717669168,24.36322361,157.78,157.75,0.04863956]
[1724717669369,3.1684,157.76,157.75,0.04863956]
[1724717670475,27.4884,157.76,157.75,0.04863956]
[1724717671961,24.36322361,157.78,157.75,0.04863956]
[1724717672268,0.04322361,157.78,157.76,3.1683]
[1724717679371,0.04322361,157.78,157.77,3.1682]
[1724717679567,57.24873898,157.84,157.76,24.32]
[1724717679568,49.97889928,157.84,157.76,24.32]
[1724717679877,49.97889928,157.84,157.75,1.2889]
[1724717680069,24.32,157.83,157.75,1.2889]
[1724717680472,3.1673,157.82,157.78,3.168]
[1724717680674,3.21169562,157.82,157.78,3.2154215]
[1724717680872,3.21169562,157.82,157.78,0.0474215]
[1724717681080,3.21169562,157.82,157.78,3.2153215]
[1724717681379,24.32,157.81,157.78,0.0474215]
[1724717682166,27.4875,157.81,157.78,0.0474215]
[1724717683574,3.1675,157.81,157.78,0.0474215]
[1724717686882,3.1675,157.81,157.78,3.2153215]
[1724717687071,3.21159562,157.82,157.78,0.0474215]
[1724717688084,3.21159562,157.82,157.79,3.1677]
[1724717688883,0.04439562,157.82,157.8,3.1675]
[1724717692184,25.36,157.94,157.81,12.8974]
[1724717692380,6.20925556,157.93,157.83,9.73]
[1724717692580,9.73,157.9,157.83,9.73]
[1724717692778,9.73,157.9,157.84,3.1667]
[1724717692983,3.1659,157.89,157.84,3.1667]
[1724717693479,0.04233823,157.88,157.85,0.04657394]
[1724717694784,0.04233823,157.88,157.86,3.1663]
[1724717697386,0.04233823,157.88,157.87,3.1662]
[1724717698884,0.04233823,157.88,157.85,0.04657394]
[1724717698885,0.04233823,157.88,157.86,3.1663]
[1724717699187,0.04233823,157.88,157.85,0.04657394]
[1724717699591,0.04233823,157.88,157.86,3.1664]
[1724717700193,0.04233823,157.88,157.87,3.1662]
[1724717701685,0.04233823,157.88,157.86,3.1663]
[1724717701886,0.04233823,157.88,157.85,0.04657394]
[1724717702487,3.20833823,157.88,157.85,0.04657394]
[1724717702999,0.04233823,157.88,157.85,3.21307394]
[1724717703796,0.04233823,157.88,157.86,3.1664]
[1724717704000,0.04233823,157.88,157.85,0.04657394]
[1724717704595,0.04233823,157.88,157.85,3.21317394]
[1724717706099,0.04233823,157.88,157.85,0.04657394]
[1724717707299,0.04233823,157.88,157.85,3.21317394]
[1724717707793,24.32,157.86,157.85,0.04657394]
[1724717707995,27.52268863,157.86,157.85,0.04657394]
[1724717708203,27.52268863,157.86,157.76,1.2678]
[1724717708402,27.52268863,157.86,157.79,3.1677]
[1724717708703,27.52268863,157.86,157.78,4.06]
[1724717708909,24.32,157.86,157.8,3.1674]
[1724717709294,0.04696251,157.85,157.81,0.04123467]
[1724717710703,3.21376251,157.85,157.81,3.20863467]
[1724717713499,3.1668,157.84,157.81,0.04123467]
[1724717713899,0.04696251,157.85,157.81,0.04123467]
[1724717714104,3.167,157.83,157.81,0.04123467]
[1724717718305,12.8969,157.84,157.81,0.04123467]
[1724717719905,3.1669,157.84,157.81,3.20863467]
[1724717724410,3.1672,157.82,157.81,0.04123467]
[1724717725311,3.1684,157.76,157.75,1.2324]
[1724717725511,3.1684,157.76,157.73,1.1982]
[1724717725701,3.1684,157.76,157.71,9.73]
[1724717726310,9.73,157.79,157.71,9.73]
[1724717726311,3.1683,157.77,157.73,3.1689]
[1724717726511,0.04425526,157.75,157.73,3.1689]
[1724717727809,0.04425526,157.75,157.74,3.1688]
[1724717729613,3.1678,157.8,157.76,3.1683]
[1724717729814,9.73,157.82,157.76,3.1683]
[1724717730407,0.0468742,157.81,157.77,0.04488823]
[1724717732114,9.73,157.8,157.77,0.04488823]
[1724717732328,9.73,157.79,157.77,0.04488823]
[1724717732828,3.168,157.78,157.77,0.04488823]
[1724717735330,3.1678,157.79,157.77,0.04488823]
[1724717735632,9.73,157.8,157.77,0.04488823]
[1724717736237,3.1679,157.79,157.77,0.04488823]
[1724717739941,9.73,157.8,157.77,0.04488823]
[1724717741035,3.1678,157.79,157.77,0.04488823]
[1724717744730,3.1677,157.8,157.77,0.04488823]
[1724717746148,3.1679,157.79,157.77,0.04488823]
[1724717750045,3.168,157.79,157.77,0.04488823]
[1724717757942,3.168,157.78,157.77,0.04488823]
[1724717763963,12.898,157.78,157.77,0.04488823]
[1724717765857,3.1679,157.79,157.77,0.04488823]
[1724717766059,0.0468742,157.81,157.77,0.04488823]
[1724717766251,0.0468742,157.81,157.78,3.1679]
[1724717766760,0.0468742,157.81,157.77,9.77488823]
[1724717766957,0.0468742,157.81,157.8,3.1676]
[1724717767256,9.73,157.89,157.8,9.73]
[1724717767449,9.73,157.89,157.83,9.73]
[1724717768456,9.73,157.89,157.84,0.04724387]
[1724717768457,3.1662,157.87,157.84,0.04724387]
[1724717771557,3.1665,157.86,157.84,0.04724387]
[1724717772156,3.1662,157.87,157.84,0.04724387]
[1724717772856,3.1666,157.85,157.84,0.04724387]
[1724717773757,12.8966,157.85,157.84,0.04724387]
[1724717773953,3.1672,157.82,157.76,13.4646]
[1724717774360,3.1672,157.82,157.78,3.1679]
[1724717774966,3.21158364,157.82,157.79,3.1678]
[1724717778855,0.04438364,157.82,157.8,3.1675]
[1724717780068,0.04438364,157.82,157.79,12.8977]
[1724717780368,3.21158364,157.82,157.79,3.1677]
[1724717780863,0.04438364,157.82,157.79,3.1677]
[1724717781865,0.04438364,157.82,157.79,12.8977]
[1724717782571,0.04438364,157.82,157.8,3.1676]
[1724717783773,3.21158364,157.82,157.79,3.1677]
[1724717784374,9.73,157.81,157.78,0.04226986]
[1724717784673,9.73,157.79,157.78,0.04226986]
[1724717785673,12.8978,157.79,157.78,0.04226986]
[1724717786172,3.1678,157.79,157.78,0.04226986]
[1724717786369,12.8978,157.79,157.78,0.04226986]
[1724717789673,3.1678,157.79,157.78,0.04226986]
[1724717790173,3.9,157.81,157.78,0.04226986]
[1724717790477,3.1678,157.79,157.78,0.04226986]
[1724717790665,9.77438364,157.82,157.78,0.04226986]
[1724717790868,0.04438364,157.82,157.78,0.04226986]
[1724717791667,3.21168364,157.82,157.79,3.1678]
[1724717792668,3.21168364,157.82,157.78,3.21016986]
[1724717793069,0.04438364,157.82,157.78,3.21016986]
[1724717793376,9.77438364,157.82,157.78,0.04226986]
[1724717794073,3.1677,157.8,157.78,0.04226986]
[1724717794476,9.77438364,157.82,157.78,0.04226986]
[1724717795477,12.8978,157.79,157.78,0.04226986]
[1724717795774,16.10781255,157.79,157.78,0.04226986]
[1724717796367,3.1687,157.75,157.72,1.2474]
[1724717796575,9.73,157.75,157.69,6.4646]
[1724717796977,9.73,157.75,157.7,3.1695]
[1724717797179,12.8987,157.75,157.7,3.1695]
[1724717797374,0.04149769,157.74,157.7,3.1695]
[1724717797586,0.04149769,157.74,157.71,3.21805195]
[1724717800374,3.21039769,157.74,157.71,0.04865195]
[1724717801367,0.04149769,157.74,157.71,3.21805195]
[1724717807688,0.04149769,157.74,157.71,0.04865195]
[1724717808489,0.04149769,157.74,157.71,3.21795195]
[1724717809385,9.77149769,157.74,157.71,0.04865195]
[1724717810089,3.1692,157.72,157.71,0.04865195]
[1724717811485,12.8992,157.72,157.71,0.04865195]
[1724717816303,3.1692,157.72,157.71,0.04865195]
[1724717822101,12.8992,157.72,157.71,0.04865195]
[1724717824509,0.04149769,157.74,157.71,0.04865195]
[1724717824904,0.04149769,157.74,157.71,3.21795195]
[1724717825901,3.21029769,157.74,157.71,3.21795195]
[1724717828908,12.8992,157.72,157.71,0.04865195]
[1724717829908,9.73,157.65,157.52,39.63189654]
[1724717830107,9.73,157.65,157.6,1.2944]
[1724717830505,9.73,157.65,157.62,3.1711]
[1724717830910,9.77621678,157.65,157.62,3.21533094]
[1724717831807,12.94681678,157.65,157.62,3.21533094]
[1724717833407,9.77621678,157.65,157.63,3.171]
[1724717833712,38.92,157.8,157.63,9.73]
[1724717833911,38.92,157.8,157.66,3.1703]
[1724717833912,3.1697,157.7,157.66,3.1703]
[1724717834514,3.1694,157.71,157.65,9.73]
[1724717834714,9.73,157.72,157.66,9.73]
[1724717834913,9.73,157.72,157.66,9.77835221]
[1724717834914,0.04845406,157.7,157.66,9.77835221]
[1724717835114,0.04845406,157.7,157.68,3.1699]
[1724717835616,0.04845406,157.7,157.66,9.77835221]
[1724717836113,0.04845406,157.7,157.66,0.04835221]
[1724717836716,9.77845406,157.7,157.66,0.04835221]
[1724717837617,0.04845406,157.7,157.66,0.04835221]
[1724717839420,3.21805406,157.7,157.67,3.17]
[1724717841911,3.1699,157.69,157.66,3.21865221]
[1724717842115,0.04845406,157.7,157.66,0.04835221]
[1724717842318,24.34,157.69,157.66,0.04835221]
[1724717842618,3.1702,157.67,157.66,0.04835221]
[1724717843207,27.5102,157.67,157.66,0.04835221]
[1724717844014,27.5102,157.67,157.6,1.2971]
[1724717844015,3.1709,157.64,157.6,1.2971]
[1724717844920,3.21825875,157.64,157.6,1.34292028]
[1724717845313,3.21825875,157.64,157.6,4.51442028]
[1724717848419,0.04735875,157.64,157.6,1.34292028]
[1724717849618,0.04735875,157.64,157.62,3.171]
[1724717849816,0.04735875,157.64,157.6,1.34292028]
[1724717850727,0.04735875,157.64,157.62,3.171]
[1724717852426,0.04735875,157.64,157.6,4.51442028]
[1724717852427,3.1711,157.63,157.6,4.51442028]
[1724717856626,3.1714,157.62,157.6,1.34292028]
[1724717857330,3.1711,157.63,157.6,4.51452028]
[1724717858629,3.1711,157.63,157.6,1.34292028]
[1724717859926,3.1711,157.63,157.6,0.04582028]
[1724717860129,3.1712,157.62,157.6,0.04582028]
[1724717860329,27.5112,157.62,157.6,0.04582028]
[1724717860921,3.1714,157.61,157.6,0.04582028]
[1724717866634,27.5113,157.62,157.6,0.04582028]
[1724717867034,24.34,157.62,157.6,0.04582028]
[1724717868033,7.04985147,157.63,157.6,0.04582028]
[1724717868332,3.12985147,157.63,157.6,0.04582028]
[1724717869031,6.30095147,157.63,157.6,0.04582028]
[1724717869934,27.5113,157.62,157.6,0.04582028]
[1724717876431,3.1714,157.61,157.6,0.04582028]
[1724717882453,3.12985147,157.63,157.6,0.04582028]
[1724717882954,6.30095147,157.63,157.6,0.04582028]
[1724717883456,3.12985147,157.63,157.6,0.04582028]
[1724717883954,3.1712,157.62,157.6,0.04582028]
[1724717885161,6.30095147,157.63,157.6,0.04582028]
[1724717885954,16.05095147,157.63,157.6,0.04582028]
[1724717887955,3.1712,157.62,157.6,0.04582028]
[1724717888155,12.87985147,157.63,157.6,0.04582028]
[1724717888855,12.9212,157.63,157.6,0.04582028]
[1724717889059,9.75,157.63,157.6,0.04582028]
[1724717889760,3.1712,157.62,157.6,0.04582028]
[1724717890556,12.921,157.63,157.6,0.04582028]
[1724717895960,3.171,157.63,157.6,0.04582028]
[1724717899277,3.171,157.63,157.6,3.21742028]
[1724717900262,3.1714,157.61,157.6,0.04582028]
[1724717900568,9.79735875,157.64,157.6,0.04582028]
[1724717900768,3.1711,157.63,157.6,0.04582028]
[1724717902266,3.1711,157.63,157.6,3.21742028]
[1724717903369,12.96825875,157.64,157.6,3.21742028]
[1724717903570,3.21825875,157.64,157.6,3.21742028]
[1724717903963,3.21825875,157.64,157.61,3.1713]
[1724717904162,9.75,157.7,157.61,9.75]
[1724717904368,3.9,157.7,157.65,3.1706]
[1724717904562,3.9,157.7,157.65,12.9206]
[1724717904764,3.9,157.7,157.65,9.75]
[1724717904969,63.50710214,157.75,157.66,9.75]
[1724717905263,63.50710214,157.75,157.69,0.04792685]
[1724717905264,3.21320749,157.72,157.69,0.04792685]
[1724717908567,3.1694,157.71,157.69,0.04792685]
[1724717908771,12.89284729,157.71,157.69,0.04792685]
[1724717909267,3.1696,157.7,157.69,0.04792685]
[1724717909670,12.89284729,157.71,157.69,0.04792685]
[1724717910675,9.75,157.71,157.69,0.04792685]
[1724717910873,3.1695,157.71,157.69,0.04792685]
[1724717911074,0.04400749,157.72,157.69,0.04792685]
[1724717911371,3.21330749,157.72,157.69,0.04792685]
[1724717914475,3.1694,157.71,157.69,0.04792685]
[1724717915771,3.21320749,157.72,157.69,0.04792685]
[1724717918170,0.04400749,157.72,157.69,3.21772685]
[1724717918374,0.04400749,157.72,157.69,0.04792685]
[1724717918566,0.04400749,157.72,157.69,9.79792685]
[1724717919374,0.04400749,157.72,157.7,3.1695]
[1724717921072,0.04400749,157.72,157.71,3.1694]
[1724717922475,0.04400749,157.72,157.7,3.1695]
[1724717923281,0.04400749,157.72,157.71,3.1694]
[1724717924585,3.1685,157.76,157.73,3.169]
[1724717925084,7.0683,157.77,157.73,3.169]
[1724717925474,3.9,157.77,157.74,3.1686]
[1724717925674,3.9439176,157.77,157.74,3.1686]
[1724717925985,3.9439176,157.77,157.73,3.21189904]
[1724717926283,7.1122176,157.77,157.73,3.21189904]
[1724717926783,3.2122176,157.77,157.73,3.21189904]
[1724717927579,3.2122176,157.77,157.73,0.04299904]
[1724717927580,0.0439176,157.77,157.73,0.04299904]
[1724717927781,0.0439176,157.77,157.74,9.75]
[1724717928381,0.0439176,157.77,157.75,3.1684]
[1724717928980,0.0439176,157.77,157.76,3.1684]
[1724717929384,224.0,157.92,157.75,9.75]
[1724717929585,13.65,157.83,157.78,3.1678]
[1724717929790,16.8608498,157.83,157.78,3.1678]
[1724717930387,0.04287641,157.82,157.79,0.04852678]
[1724717931389,12.9174,157.81,157.79,0.04852678]
[1724717933183,3.1676,157.8,157.79,0.04852678]
[1724717934586,12.9175,157.81,157.79,0.04852678]
[1724717934785,3.1675,157.81,157.79,0.04852678]
[1724717936393,3.21007641,157.82,157.79,0.04852678]
[1724717936995,0.04287641,157.82,157.79,0.04852678]
[1724717937190,0.04287641,157.82,157.79,9.79852678]
[1724717937698,0.04287641,157.82,157.79,12.96622678]
[1724717938997,9.79287641,157.82,157.79,3.21622678]
[1724717939204,9.75,157.8,157.74,3.9]
[1724717939498,3.9,157.81,157.71,9.75]
[1724717939799,9.75,157.8,157.73,9.75]
[1724717940191,0.04792657,157.78,157.75,0.04302133]
[1724717940492,0.04792657,157.78,157.76,9.75]
[1724717940693,3.21646741,157.85,157.76,9.75]
[1724717940694,9.75,157.84,157.77,9.75]
[1724717941001,3.1671,157.83,157.78,3.1678]
[1724717941293,9.75,157.84,157.78,3.1678]
[1724717941689,3.1673,157.82,157.79,0.04162193]
[1724717942792,0.04478855,157.83,157.79,12.95922193]
[1724717943899,0.04478855,157.83,157.82,9.75]
[1724717944297,0.04478855,157.83,157.82,12.9172]
[1724717944602,9.75,157.9,157.82,9.75]
[1724717944798,9.75,157.9,157.84,9.75]
[1724717945191,9.75,157.89,157.83,3.1668]
[1724717945595,3.9,157.92,157.84,0.04564219]
[1724717945596,9.75,157.87,157.84,0.04564219]
[1724717946106,12.9163,157.87,157.84,0.04564219]
[1724717946701,3.1664,157.86,157.84,0.04564219]
[1724717947405,12.9162,157.87,157.84,0.04564219]
[1724717947612,3.1662,157.87,157.84,0.04564219]
[1724717948901,3.1663,157.87,157.84,0.04564219]
[1724717951007,0.03346428,157.88,157.84,0.04564219]
[1724717951609,3.1663,157.87,157.84,0.04564219]
[1724717953705,3.1664,157.86,157.84,0.04564219]
[1724717955810,0.03346428,157.88,157.85,9.75]
[1724717955811,3.1662,157.87,157.85,9.75]
[1724717956015,0.03346428,157.88,157.85,9.75]
[1724717956415,3.1664,157.87,157.85,9.75]
[1724717956710,0.03346428,157.88,157.85,9.75]
[1724717956904,0.03346428,157.88,157.86,9.75]
[1724717957516,0.03346428,157.88,157.85,14.1468]
[1724717958414,3.19946428,157.88,157.85,14.1468]
[1724717960411,3.19946428,157.88,157.86,9.75]
[1724717961417,0.03346428,157.88,157.87,9.75]
[1724717962217,13.65,157.96,157.87,12.9162]
[1724717962419,0.92287237,157.95,157.89,9.75]
[1724717962609,4.06328458,157.95,157.89,9.75]
[1724717962809,3.1653,157.92,157.89,9.75]
[1724717963116,3.1653,157.92,157.89,9.79746505]
[1724717965114,3.165,157.93,157.89,12.96316505]
[1724717965415,7.05363075,157.96,157.89,9.79746505]
[1724717965613,12.97487956,157.98,157.91,9.75]
[1724717965814,3.1645,157.96,157.93,0.0441968]
[1724717966213,12.97487956,157.98,157.93,0.0441968]
[1724717966414,0.92335916,157.97,157.93,0.0441968]
[1724717967518,9.75,157.96,157.93,0.0441968]
[1724717967718,9.75,157.95,157.93,0.0441968]
[1724717967917,3.1648,157.94,157.93,0.0441968]
[1724717968217,0.92331685,157.94,157.86,1.2767]
[1724717968421,3.1656,157.9,157.86,4.4429]
[1724717969318,3.1656,157.9,157.87,3.1661]
[1724717969319,0.04158845,157.9,157.87,3.1661]
[1724717970216,0.04158845,157.9,157.86,11.07537181]
[1724717970919,0.04158845,157.9,157.87,3.1661]
[1724717972020,0.04158845,157.9,157.86,0.04867181]
[1724717972021,9.79158845,157.9,157.86,0.04867181]
[1724717972325,9.75,157.88,157.86,0.04867181]
[1724717973319,3.1662,157.87,157.86,0.04867181]
[1724717975917,12.9162,157.87,157.86,0.04867181]
[1724717977831,3.94158845,157.9,157.86,0.04867181]
[1724717978223,13.69158845,157.9,157.86,0.04867181]
[1724717978824,3.166,157.89,157.86,0.04867181]
[1724717980326,3.166,157.88,157.86,0.04867181]
[1724717982529,3.1659,157.89,157.86,0.04867181]
[1724717982922,9.79158845,157.9,157.86,0.04867181]
[1724717983125,0.04158845,157.9,157.86,9.79867181]
[1724717983325,0.04158845,157.9,157.87,9.75]
[1724717983529,0.04158845,157.9,157.89,9.75]
[1724717985134,0.04158845,157.9,157.89,12.9158]
[1724717987428,0.04158845,157.9,157.89,9.75]
[1724717997334,0.04158845,157.9,157.89,12.9158]
[1724717997538,0.04158845,157.9,157.89,9.75]
[1724717998038,0.04158845,157.9,157.86,0.04867181]
[1724717998240,0.04158845,157.9,157.88,9.75]
[1724717998541,0.04158845,157.9,157.88,12.9159]
[1724718000641,3.1651,157.93,157.89,12.9158]
[1724718001541,3.1652,157.93,157.89,12.9159]
[1724718001838,3.1652,157.93,157.89,12.96395378]
[1724718002043,3.1649,157.95,157.9,3.1656]
[1724718002231,165.6135132,158.19,157.93,9.75]
[1724718002232,3.9,158.0,157.93,9.75]
[1724718002428,0.9233272,157.99,157.95,0.04052613]
[1724718002633,3.1645,157.97,157.95,0.04463422]
[1724718002935,9.75,157.96,157.95,0.04463422]
[1724718003137,16.11319667,157.96,157.95,0.04463422]
[1724718003341,6.36319667,157.96,157.95,0.04463422]
[1724718007141,16.11319667,157.96,157.95,0.04463422]
[1724718007344,16.11319667,157.96,157.9,3.1657]
[1724718007345,12.94859667,157.96,157.9,3.1657]
[1724718008145,3.1651,157.94,157.9,3.1657]
[1724718008347,3.21234257,157.94,157.9,3.210581]
[1724718009245,0.04724257,157.94,157.9,0.044881]
[1724718009442,9.79724257,157.94,157.9,0.044881]
[1724718010047,3.1653,157.93,157.9,0.044881]
[1724718010437,9.79724257,157.94,157.9,0.044881]
[1724718011340,3.1655,157.92,157.9,0.044881]
[1724718012346,3.1656,157.91,157.9,0.044881]
[1724718013741,3.1654,157.92,157.9,0.044881]
[1724718015939,0.04724257,157.94,157.9,0.044881]
[1724718016250,0.97074191,157.94,157.9,0.044881]
[1724718016951,3.1656,157.92,157.9,0.044881]
[1724718019454,3.1656,157.91,157.9,0.044881]
[1724718022551,9.75,157.93,157.9,0.044881]
[1724718023048,3.1654,157.92,157.9,0.044881]
[1724718026763,0.04724257,157.94,157.9,0.044881]
[1724718027058,0.04724257,157.94,157.92,9.75]
[1724718027446,1.2216,158.03,157.93,9.75]
[1724718027650,0.92303185,158.02,157.97,9.75]
[1724718027960,3.1637,158.01,157.97,12.9144]
[1724718028148,4.4442686,158.03,157.97,9.75]
[1724718028352,0.92291568,158.02,157.98,0.04595733]
[1724718029355,4.08631568,158.02,157.98,3.21015733]
[1724718029560,3.1634,158.02,157.98,3.21015733]
[1724718029855,6.3859686,158.03,157.98,3.21015733]
[1724718030249,3.2226686,158.03,157.99,3.1639]
[1724718030453,6.3858686,158.03,157.99,3.1639]
[1724718031162,6.3858686,158.03,157.98,3.21005733]
[1724718033264,9.75,158.05,158.0,3.1638]
[1724718033456,0.92276635,158.04,158.0,3.1638]
[1724718034159,12.87492889,158.05,158.0,3.1638]
[1724718034364,0.92275892,158.04,158.0,3.1638]
[1724718034759,3.12492889,158.05,158.01,3.1636]
[1724718035063,9.75,158.07,158.01,9.79117794]
[1724718035263,0.92271115,158.06,158.01,9.79117794]
[1724718035467,6.28539679,158.05,158.01,9.79117794]
[1724718038062,9.75,158.04,158.01,0.04117794]
[1724718038263,0.92284322,158.03,158.01,0.04117794]
[1724718038468,12.9134,158.02,158.01,0.04117794]
[1724718038672,9.75,158.04,158.01,0.04117794]
[1724718040064,3.1632,158.03,158.01,0.04117794]
[1724718040668,3.12239679,158.05,158.01,0.04117794]
[1724718040961,0.92285429,158.04,158.01,0.04117794]
[1724718041161,3.12358381,158.06,158.01,0.04870973]
[1724718041468,4.08566717,158.05,158.01,3.21230973]
[1724718041664,3.13655919,158.06,158.01,0.04870973]
[1724718041875,10.67279527,158.05,158.02,0.04762605]
[1724718042069,4.01758008,158.04,158.02,0.04762605]
[1724718042269,4.08599527,158.03,158.02,0.04762605]
[1724718042465,3.1632,158.03,158.02,0.04762605]
[1724718042666,4.08605332,158.03,158.02,0.04762605]
[1724718043267,0.92285332,158.03,158.02,0.04762605]
[1724718043466,3.163,158.05,158.02,0.04762605]
[1724718045472,3.1626,158.06,158.02,3.21102605]
[1724718045780,0.92274955,158.05,158.02,0.04762605]
[1724718046074,12.92401848,158.07,158.02,0.04762605]
[1724718046380,3.1629,158.05,158.02,0.04762605]
[1724718046682,12.92401848,158.07,158.02,0.04762605]
[1724718046867,10.67274855,158.06,158.02,0.04762605]
[1724718047071,4.08574855,158.05,158.02,0.04762605]
[1724718047386,3.17401848,158.07,158.02,0.04762605]
[1724718047577,0.92274905,158.06,158.02,0.04762605]
[1724718047767,0.92274905,158.05,158.02,0.04762605]
[1724718047965,12.90661359,158.08,158.02,0.04762605]
[1724718048170,3.1628,158.05,158.02,0.04762605]
[1724718050477,3.1632,158.04,158.02,0.04762605]
[1724718051378,3.1628,158.05,158.02,0.04762605]
[1724718051872,3.163,158.04,158.02,0.04762605]
[1724718052474,3.1629,158.05,158.02,0.04762605]
[1724718053573,9.75,158.05,158.02,0.04762605]
[1724718054379,3.1631,158.04,158.02,0.04762605]
[1724718054779,9.75,158.05,158.02,0.04762605]
[1724718054979,0.9227901,158.04,158.02,0.04762605]
[1724718055175,3.163,158.04,158.02,0.04762605]
[1724718055370,9.75,158.05,158.02,0.04762605]
[1724718055669,0.92279069,158.04,158.02,0.04762605]
[1724718057378,3.1632,158.03,158.02,0.04762605]
[1724718059373,4.08610009,158.03,158.02,0.04762605]
[1724718060182,4.08610009,158.03,157.92,3.8155]
[1724718060183,0.92290009,158.03,157.92,3.8155]
[1724718060383,9.75,158.0,157.93,13.65]
[1724718060584,9.75,157.98,157.92,13.5655]
[1724718060887,3.1644,157.97,157.92,16.2138]
[1724718061084,0.04350405,157.96,157.93,3.1652]
[1724718061384,0.04350405,157.96,157.93,0.04715293]
[1724718062188,3.20810405,157.96,157.93,0.04715293]
[1724718062480,9.75,157.95,157.93,0.04715293]
[1724718062680,9.75,157.94,157.93,0.04715293]
[1724718063682,12.915,157.94,157.93,0.04715293]
[1724718064275,3.165,157.94,157.93,0.04715293]
[1724718065981,4.08843931,157.94,157.93,0.04715293]
[1724718067190,3.165,157.94,157.93,0.04715293]